[Event "Titled Tuesday Blitz January 03 Early 2023"]
[White "Dwilewicz, Katarzyna"]
[Black "MIM06"]
[WhiteFideId "1148486"]
[WhiteElo "2115"]
[BlackElo "2273"]
[Result "1-0"]
[Round "11"]
[TimeControl "180+2"]
[Date "2023.01.03"]
[WhiteClock "0:00:14"]
[BlackClock "0:00:05"]

1. e4 {[%clk 0:02:51]}  c6 {[%clk 0:02:56]} 2. d4 {[%clk 0:02:50]}  d5 {[%clk 0:02:56]} 3. e5 {[%clk 0:02:51]}  Bf5 {[%clk 0:02:56]} 4. Nf3 {[%clk 0:02:45]}  e6 {[%clk 0:02:56]} 5. Be2 {[%clk 0:02:40]}  h6 {[%clk 0:02:53]} 6. O-O {[%clk 0:02:37]}  Ne7 {[%clk 0:02:54]} 7. Nbd2 {[%clk 0:02:32]}  Nd7 {[%clk 0:02:53]} 8. Nb3 {[%clk 0:02:30]}  Rc8 {[%clk 0:02:52]} 9. Bd2 {[%clk 0:02:24]}  a6 {[%clk 0:02:51]} 10. a4 {[%clk 0:02:10]}  c5 {[%clk 0:02:47]} 11. dxc5 {[%clk 0:02:10]}  Nc6 {[%clk 0:02:43]} 12. Bc3 {[%clk 0:02:08]}  Nxc5 {[%clk 0:02:39]} 13. Nbd4 {[%clk 0:02:08]}  Nxd4 {[%clk 0:02:35]} 14. Nxd4 {[%clk 0:02:07]}  Bg6 {[%clk 0:02:34]} 15. f4 {[%clk 0:02:06]}  Ne4 {[%clk 0:02:32]} 16. Be1 {[%clk 0:01:59]}  Bc5 {[%clk 0:02:30]} 17. Kh1 {[%clk 0:01:59]}  O-O {[%clk 0:02:27]} 18. c3 {[%clk 0:01:51]}  Qb6 {[%clk 0:02:21]} 19. b4 {[%clk 0:01:29]}  Bxd4 {[%clk 0:02:18]} 20. Qxd4 {[%clk 0:01:27]}  Qxd4 {[%clk 0:02:07]} 21. cxd4 {[%clk 0:01:28]}  Rc7 {[%clk 0:02:06]} 22. g4 {[%clk 0:01:22]}  f6 {[%clk 0:01:47]} 23. f5 {[%clk 0:01:19]}  Bf7 {[%clk 0:01:44]} 24. Bd3 {[%clk 0:01:10]}  exf5 {[%clk 0:00:55]} 25. gxf5 {[%clk 0:01:09]}  fxe5 {[%clk 0:00:55]} 26. dxe5 {[%clk 0:01:09]}  Bh5 {[%clk 0:00:54]} 27. Bh4 {[%clk 0:00:59]}  Rcf7 {[%clk 0:00:45]} 28. Bxe4 {[%clk 0:00:57]}  dxe4 {[%clk 0:00:45]} 29. f6 {[%clk 0:00:58]}  gxf6 {[%clk 0:00:45]} 30. Bxf6 {[%clk 0:00:57]}  Bf3+ {[%clk 0:00:44]} 31. Kg1 {[%clk 0:00:52]}  Kh7 {[%clk 0:00:42]} 32. Kf2 {[%clk 0:00:50]}  Rc8 {[%clk 0:00:36]} 33. Rac1 {[%clk 0:00:50]}  Rfc7 {[%clk 0:00:33]} 34. Rxc7+ {[%clk 0:00:46]}  Rxc7 {[%clk 0:00:34]} 35. Rg1 {[%clk 0:00:44]}  Bh5 {[%clk 0:00:20]} 36. Ke3 {[%clk 0:00:43]}  Bg6 {[%clk 0:00:20]} 37. h4 {[%clk 0:00:42]}  h5 {[%clk 0:00:18]} 38. Kd4 {[%clk 0:00:38]}  b5 {[%clk 0:00:19]} 39. axb5 {[%clk 0:00:34]}  axb5 {[%clk 0:00:19]} 40. e6 {[%clk 0:00:34]}  Rc4+ {[%clk 0:00:20]} 41. Ke5 {[%clk 0:00:34]}  Rxb4 {[%clk 0:00:20]} 42. e7 {[%clk 0:00:35]}  e3 {[%clk 0:00:10]} 43. Rxg6 {[%clk 0:00:33]}  e2 {[%clk 0:00:11]} 44. Rg1 {[%clk 0:00:30]}  Rb3 {[%clk 0:00:08]} 45. Kd4 {[%clk 0:00:27]}  Rg3 {[%clk 0:00:06]} 46. Re1 {[%clk 0:00:22]}  Rg4+ {[%clk 0:00:05]} 47. Kd5 {[%clk 0:00:22]}  Rg8 {[%clk 0:00:05]} 48. Rxe2 {[%clk 0:00:22]}  Re8 {[%clk 0:00:05]} 49. Ke6 {[%clk 0:00:21]}  Kg6 {[%clk 0:00:06]} 50. Rg2+ {[%clk 0:00:20]}  Kh7 {[%clk 0:00:06]} 51. Kf7 {[%clk 0:00:21]}  Ra8 {[%clk 0:00:04]} 52. e8=Q {[%clk 0:00:15]}  Rxe8 {[%clk 0:00:04]} 53. Kxe8 {[%clk 0:00:16]}  b4 {[%clk 0:00:05]} 54. Kf7 {[%clk 0:00:16]}  b3 {[%clk 0:00:06]} 55. Rg7+ {[%clk 0:00:14]}  Kh6 {[%clk 0:00:06]} 56. Rg6+ {[%clk 0:00:14]}  Kh7 {[%clk 0:00:06]} 57. Bg5 {[%clk 0:00:14]}  Kh8 {[%clk 0:00:05]} 58. Rh6# {[%clk 0:00:14]} 1-0


[Site "https://www.chess.com"]

[Event "Titled Tuesday Blitz January 03 Early 2023"]
[White "Martin, Lewis"]
[Black "Qashashvili, Alexandre"]
[WhiteFideId "410551"]
[BlackFideId "13600842"]
[WhiteElo "2135"]
[BlackElo "2505"]
[Result "0-1"]
[Round "11"]
[TimeControl "180+2"]
[Date "2023.01.03"]
[WhiteClock "0:01:46"]
[BlackClock "0:02:28"]

1. e4 {[%clk 0:02:49]}  c6 {[%clk 0:03:00]} 2. d4 {[%clk 0:02:47]}  d5 {[%clk 0:03:01]} 3. Nc3 {[%clk 0:02:48]}  dxe4 {[%clk 0:03:01]} 4. Nxe4 {[%clk 0:02:48]}  Nd7 {[%clk 0:03:01]} 5. Nf3 {[%clk 0:02:47]}  Ngf6 {[%clk 0:03:01]} 6. Nxf6+ {[%clk 0:02:46]}  Nxf6 {[%clk 0:03:02]} 7. c3 {[%clk 0:02:47]}  Bf5 {[%clk 0:03:01]} 8. Bd3 {[%clk 0:02:46]}  Bxd3 {[%clk 0:03:01]} 9. Qxd3 {[%clk 0:02:47]}  e6 {[%clk 0:03:01]} 10. O-O {[%clk 0:02:46]}  h6 {[%clk 0:03:01]} 11. Bf4 {[%clk 0:02:45]}  Bd6 {[%clk 0:03:00]} 12. Bxd6 {[%clk 0:02:46]}  Qxd6 {[%clk 0:03:01]} 13. Rfe1 {[%clk 0:02:45]}  O-O {[%clk 0:03:01]} 14. Rad1 {[%clk 0:02:41]}  Rfd8 {[%clk 0:02:57]} 15. Ne5 {[%clk 0:02:41]}  Nd7 {[%clk 0:02:56]} 16. Nc4 {[%clk 0:02:37]}  Qd5 {[%clk 0:02:56]} 17. b3 {[%clk 0:02:35]}  b5 {[%clk 0:02:54]} 18. Ne3 {[%clk 0:02:32]}  Qg5 {[%clk 0:02:52]} 19. Qe4 {[%clk 0:02:31]}  Rac8 {[%clk 0:02:50]} 20. f4 {[%clk 0:02:25]}  Qh5 {[%clk 0:02:42]} 21. Nf1 {[%clk 0:02:17]}  Nf6 {[%clk 0:02:39]} 22. Qc2 {[%clk 0:02:13]}  Qf5 {[%clk 0:02:36]} 23. Qxf5 {[%clk 0:02:04]}  exf5 {[%clk 0:02:37]} 24. Re7 {[%clk 0:02:04]}  Rd7 {[%clk 0:02:37]} 25. Rde1 {[%clk 0:02:01]}  Kf8 {[%clk 0:02:36]} 26. Rxd7 {[%clk 0:01:59]}  Nxd7 {[%clk 0:02:37]} 27. Kf2 {[%clk 0:01:56]}  Nf6 {[%clk 0:02:33]} 28. Re5 {[%clk 0:01:55]}  g6 {[%clk 0:02:32]} 29. h3 {[%clk 0:01:54]}  Ne4+ {[%clk 0:02:30]} 30. Ke3 {[%clk 0:01:45]}  Nxc3 {[%clk 0:02:30]} 31. Rc5 {[%clk 0:01:46]}  Nxa2 {[%clk 0:02:28]} 0-1


[Site "https://www.chess.com"]

[Event "Titled Tuesday Blitz January 03 Early 2023"]
[White "Ardila, Oscar Humberto"]
[Black "Prudnykova, Olga"]
[WhiteFideId "4404742"]
[BlackFideId "14121093"]
[WhiteElo "1982"]
[BlackElo "2268"]
[Result "1/2-1/2"]
[Round "11"]
[TimeControl "180+2"]
[Date "2023.01.03"]
[WhiteClock "0:00:30"]
[BlackClock "0:00:50"]

1. d4 {[%clk 0:02:53]}  Nf6 {[%clk 0:02:59]} 2. c4 {[%clk 0:02:53]}  g6 {[%clk 0:02:59]} 3. Nc3 {[%clk 0:02:53]}  d5 {[%clk 0:02:59]} 4. Nf3 {[%clk 0:02:52]}  Bg7 {[%clk 0:02:59]} 5. e3 {[%clk 0:02:52]}  O-O {[%clk 0:02:58]} 6. Be2 {[%clk 0:02:53]}  dxc4 {[%clk 0:02:58]} 7. Bxc4 {[%clk 0:02:52]}  c5 {[%clk 0:02:59]} 8. O-O {[%clk 0:02:52]}  cxd4 {[%clk 0:02:59]} 9. Nxd4 {[%clk 0:02:50]}  Qc7 {[%clk 0:02:58]} 10. Be2 {[%clk 0:02:49]}  Nc6 {[%clk 0:02:51]} 11. Nxc6 {[%clk 0:02:47]}  bxc6 {[%clk 0:02:47]} 12. Bf3 {[%clk 0:02:46]}  Rd8 {[%clk 0:02:42]} 13. Qa4 {[%clk 0:02:46]}  Nd5 {[%clk 0:02:43]} 14. Bd2 {[%clk 0:02:42]}  Be6 {[%clk 0:02:35]} 15. Rfd1 {[%clk 0:02:39]}  Nxc3 {[%clk 0:02:35]} 16. Bxc3 {[%clk 0:02:39]}  Bxc3 {[%clk 0:02:35]} 17. bxc3 {[%clk 0:02:39]}  Bd5 {[%clk 0:02:34]} 18. e4 {[%clk 0:02:30]}  Be6 {[%clk 0:02:33]} 19. Rd4 {[%clk 0:02:20]}  c5 {[%clk 0:02:29]} 20. Rdd1 {[%clk 0:02:20]}  Qe5 {[%clk 0:02:18]} 21. Qa5 {[%clk 0:02:16]}  Rd6 {[%clk 0:02:10]} 22. Rab1 {[%clk 0:01:55]}  Kg7 {[%clk 0:01:54]} 23. h3 {[%clk 0:01:53]}  Rad8 {[%clk 0:01:52]} 24. Rxd6 {[%clk 0:01:51]}  Rxd6 {[%clk 0:01:49]} 25. Rb7 {[%clk 0:01:40]}  Rb6 {[%clk 0:01:43]} 26. Rxb6 {[%clk 0:01:33]}  axb6 {[%clk 0:01:43]} 27. Qxb6 {[%clk 0:01:19]}  Qxc3 {[%clk 0:01:42]} 28. a4 {[%clk 0:01:13]}  Qe1+ {[%clk 0:01:36]} 29. Kh2 {[%clk 0:01:13]}  Qxf2 {[%clk 0:01:37]} 30. a5 {[%clk 0:01:13]}  h5 {[%clk 0:01:17]} 31. a6 {[%clk 0:01:03]}  h4 {[%clk 0:01:17]} 32. Qc7 {[%clk 0:01:03]}  Bc8 {[%clk 0:00:50]} 33. a7 {[%clk 0:00:54]}  Bb7 {[%clk 0:00:50]} 34. Qxb7 {[%clk 0:00:33]}  Qg3+ {[%clk 0:00:50]} 35. Kg1 {[%clk 0:00:33]}  Qe1+ {[%clk 0:00:50]} 36. Kh2 {[%clk 0:00:33]}  Qg3+ {[%clk 0:00:50]} 37. Kg1 {[%clk 0:00:33]}  Qe1+ {[%clk 0:00:51]} 38. Kh2 {[%clk 0:00:30]}  Qg3+ {[%clk 0:00:50]} 1/2-1/2


[Site "https://www.chess.com"]

[Event "Titled Tuesday Blitz January 03 Early 2023"]
[White "Ivanova, Karina"]
[Black "Zaichenko, Daria"]
[WhiteFideId "24139750"]
[BlackFideId "4197453"]
[WhiteElo "2085"]
[BlackElo "2104"]
[Result "1-0"]
[Round "11"]
[TimeControl "180+2"]
[Date "2023.01.03"]
[WhiteClock "0:00:04"]
[BlackClock "0:00:02"]

1. Nf3 {[%clk 0:02:57]}  Nf6 {[%clk 0:02:57]} 2. g3 {[%clk 0:02:46]}  d5 {[%clk 0:02:56]} 3. Bg2 {[%clk 0:02:46]}  e6 {[%clk 0:02:57]} 4. O-O {[%clk 0:02:46]}  Be7 {[%clk 0:02:57]} 5. d4 {[%clk 0:02:46]}  O-O {[%clk 0:02:56]} 6. Nbd2 {[%clk 0:02:45]}  c5 {[%clk 0:02:55]} 7. c4 {[%clk 0:02:43]}  Nc6 {[%clk 0:02:53]} 8. dxc5 {[%clk 0:02:39]}  Bxc5 {[%clk 0:02:53]} 9. cxd5 {[%clk 0:02:39]}  Nxd5 {[%clk 0:02:52]} 10. Ne4 {[%clk 0:02:34]}  Bb6 {[%clk 0:02:50]} 11. b3 {[%clk 0:02:28]}  Bd7 {[%clk 0:02:36]} 12. Ba3 {[%clk 0:02:21]}  Ncb4 {[%clk 0:02:32]} 13. Nfd2 {[%clk 0:01:58]}  f5 {[%clk 0:02:30]} 14. Nd6 {[%clk 0:01:55]}  Nc3 {[%clk 0:02:28]} 15. Nxb7 {[%clk 0:01:43]}  Qb8 {[%clk 0:02:13]} 16. Bxb4 {[%clk 0:01:40]}  Nxd1 {[%clk 0:02:12]} 17. Rfxd1 {[%clk 0:01:40]}  a5 {[%clk 0:01:47]} 18. Bd6 {[%clk 0:01:33]}  Qa7 {[%clk 0:01:43]} 19. e3 {[%clk 0:01:20]}  Rfb8 {[%clk 0:01:39]} 20. Bxb8 {[%clk 0:01:17]}  Rxb8 {[%clk 0:01:37]} 21. Nd6 {[%clk 0:01:15]}  Bc5 {[%clk 0:01:31]} 22. N6c4 {[%clk 0:01:13]}  Bb5 {[%clk 0:01:29]} 23. Rac1 {[%clk 0:01:11]}  Bb4 {[%clk 0:01:27]} 24. Nf3 {[%clk 0:00:56]}  Rc8 {[%clk 0:01:24]} 25. Nd4 {[%clk 0:00:53]}  Bxc4 {[%clk 0:01:23]} 26. bxc4 {[%clk 0:00:53]}  Qa6 {[%clk 0:01:21]} 27. Bf1 {[%clk 0:00:42]}  Rc5 {[%clk 0:01:18]} 28. a4 {[%clk 0:00:35]}  Kf7 {[%clk 0:01:11]} 29. Nb5 {[%clk 0:00:33]}  Kf6 {[%clk 0:00:59]} 30. h4 {[%clk 0:00:30]}  Qc6 {[%clk 0:00:56]} 31. Rd6 {[%clk 0:00:26]}  Qe4 {[%clk 0:00:53]} 32. Bd3 {[%clk 0:00:23]}  Qf3 {[%clk 0:00:51]} 33. Nd4 {[%clk 0:00:16]}  Qg4 {[%clk 0:00:46]} 34. Nxe6 {[%clk 0:00:13]}  Re5 {[%clk 0:00:39]} 35. Nf4+ {[%clk 0:00:11]}  Bxd6 {[%clk 0:00:39]} 36. Nd5+ {[%clk 0:00:09]}  Kf7 {[%clk 0:00:34]} 37. Nf4 {[%clk 0:00:08]}  Rc5 {[%clk 0:00:30]} 38. Be2 {[%clk 0:00:07]}  Bxf4 {[%clk 0:00:22]} 39. Bxg4 {[%clk 0:00:06]}  Bxe3 {[%clk 0:00:19]} 40. fxe3 {[%clk 0:00:07]}  fxg4 {[%clk 0:00:19]} 41. Kf2 {[%clk 0:00:06]}  Ke6 {[%clk 0:00:19]} 42. Ke2 {[%clk 0:00:06]}  Ke5 {[%clk 0:00:15]} 43. Kd3 {[%clk 0:00:06]}  h5 {[%clk 0:00:13]} 44. Rb1 {[%clk 0:00:06]}  Rc6 {[%clk 0:00:12]} 45. Rb5+ {[%clk 0:00:06]}  Kf6 {[%clk 0:00:12]} 46. Rxh5 {[%clk 0:00:06]}  Rd6+ {[%clk 0:00:11]} 47. Rd5 {[%clk 0:00:06]}  Rb6 {[%clk 0:00:10]} 48. Rxa5 {[%clk 0:00:06]}  Rb2 {[%clk 0:00:10]} 49. Ke4 {[%clk 0:00:06]}  Rg2 {[%clk 0:00:09]} 50. Ra6+ {[%clk 0:00:05]}  Kf7 {[%clk 0:00:09]} 51. Kf4 {[%clk 0:00:06]}  Rc2 {[%clk 0:00:08]} 52. Rc6 {[%clk 0:00:05]}  Ra2 {[%clk 0:00:08]} 53. Kxg4 {[%clk 0:00:05]}  Rxa4 {[%clk 0:00:08]} 54. e4 {[%clk 0:00:05]}  Ra3 {[%clk 0:00:08]} 55. Kf4 {[%clk 0:00:04]}  Rc3 {[%clk 0:00:08]} 56. g4 {[%clk 0:00:04]}  Rc2 {[%clk 0:00:08]} 57. Kg5 {[%clk 0:00:04]}  Re2 {[%clk 0:00:08]} 58. Rc7+ {[%clk 0:00:04]}  Ke6 {[%clk 0:00:07]} 59. Rxg7 {[%clk 0:00:04]}  Rxe4 {[%clk 0:00:08]} 60. Rc7 {[%clk 0:00:04]}  Kd6 {[%clk 0:00:08]} 61. Rc8 {[%clk 0:00:03]}  Kd7 {[%clk 0:00:08]} 62. Rc5 {[%clk 0:00:03]}  Kd6 {[%clk 0:00:08]} 63. Rd5+ {[%clk 0:00:03]}  Ke6 {[%clk 0:00:08]} 64. Rf5 {[%clk 0:00:03]}  Rxc4 {[%clk 0:00:07]} 65. h5 {[%clk 0:00:04]}  Ke7 {[%clk 0:00:06]} 66. Kh4 {[%clk 0:00:03]}  Rd4 {[%clk 0:00:03]} 67. Kg5 {[%clk 0:00:03]}  Ke6 {[%clk 0:00:03]} 68. h6 {[%clk 0:00:03]}  Rd7 {[%clk 0:00:03]} 69. Kg6 {[%clk 0:00:03]}  Rd8 {[%clk 0:00:04]} 70. Rf6+ {[%clk 0:00:03]}  Ke7 {[%clk 0:00:04]} 71. g5 {[%clk 0:00:04]}  Rg8+ {[%clk 0:00:03]} 72. Kf5 {[%clk 0:00:04]}  Rh8 {[%clk 0:00:02]} 73. Rg6 {[%clk 0:00:04]}  Kf7 {[%clk 0:00:02]} 74. Rg7+ {[%clk 0:00:04]}  Kf8 {[%clk 0:00:02]} 75. Kf6 {[%clk 0:00:04]}  Ke8 {[%clk 0:00:02]} 76. h7 {[%clk 0:00:04]}  Kf8 {[%clk 0:00:02]} 77. g6 {[%clk 0:00:03]}  Ke8 {[%clk 0:00:01]} 78. Rg8+ {[%clk 0:00:03]}  Rxg8 {[%clk 0:00:02]} 79. hxg8=Q+ {[%clk 0:00:03]}  Kd7 {[%clk 0:00:02]} 80. Qe6+ {[%clk 0:00:03]}  Kc7 {[%clk 0:00:02]} 81. g7 {[%clk 0:00:04]} 1-0


[Site "https://www.chess.com"]

[Event "Titled Tuesday Blitz January 03 Early 2023"]
[White "Cardozo Munar, Carlos Eduardo"]
[Black "Gavilan Diaz, Mario"]
[WhiteFideId "4409477"]
[BlackFideId "2260905"]
[WhiteElo "2043"]
[BlackElo "2271"]
[Result "1/2-1/2"]
[Round "11"]
[TimeControl "180+2"]
[Date "2023.01.03"]
[WhiteClock "0:01:33"]
[BlackClock "0:00:35"]

1. d4 {[%clk 0:02:53]}  Nf6 {[%clk 0:02:59]} 2. Bg5 {[%clk 0:02:52]}  Ne4 {[%clk 0:02:57]} 3. h4 {[%clk 0:02:52]}  d5 {[%clk 0:02:57]} 4. Nd2 {[%clk 0:02:52]}  Nxd2 {[%clk 0:02:56]} 5. Qxd2 {[%clk 0:02:52]}  h6 {[%clk 0:02:55]} 6. Bf4 {[%clk 0:02:51]}  c5 {[%clk 0:02:55]} 7. e3 {[%clk 0:02:51]}  cxd4 {[%clk 0:02:55]} 8. exd4 {[%clk 0:02:51]}  Nc6 {[%clk 0:02:55]} 9. c3 {[%clk 0:02:51]}  Bf5 {[%clk 0:02:55]} 10. Nf3 {[%clk 0:02:52]}  e6 {[%clk 0:02:55]} 11. Bd3 {[%clk 0:02:51]}  Bxd3 {[%clk 0:02:49]} 12. Qxd3 {[%clk 0:02:52]}  Bd6 {[%clk 0:02:49]} 13. Bd2 {[%clk 0:02:48]}  O-O {[%clk 0:02:47]} 14. O-O {[%clk 0:02:44]}  Qf6 {[%clk 0:02:29]} 15. Rae1 {[%clk 0:02:43]}  Rab8 {[%clk 0:02:23]} 16. Re2 {[%clk 0:02:38]}  b5 {[%clk 0:02:22]} 17. a3 {[%clk 0:02:37]}  a5 {[%clk 0:02:22]} 18. Rfe1 {[%clk 0:02:37]}  b4 {[%clk 0:02:22]} 19. axb4 {[%clk 0:02:37]}  axb4 {[%clk 0:02:23]} 20. Ne5 {[%clk 0:02:38]}  Bxe5 {[%clk 0:02:18]} 21. dxe5 {[%clk 0:02:39]}  Qxh4 {[%clk 0:02:16]} 22. Re3 {[%clk 0:02:36]}  bxc3 {[%clk 0:02:13]} 23. bxc3 {[%clk 0:02:33]}  Qc4 {[%clk 0:01:48]} 24. Qc2 {[%clk 0:02:27]}  Nd4 {[%clk 0:01:39]} 25. Qd1 {[%clk 0:02:24]}  Nf5 {[%clk 0:01:37]} 26. Rh3 {[%clk 0:02:21]}  Rfd8 {[%clk 0:01:33]} 27. Qf3 {[%clk 0:02:09]}  Rb2 {[%clk 0:01:24]} 28. Bc1 {[%clk 0:02:02]}  Rc2 {[%clk 0:01:21]} 29. g4 {[%clk 0:01:55]}  Ne7 {[%clk 0:01:19]} 30. Bxh6 {[%clk 0:01:47]}  gxh6 {[%clk 0:01:11]} 31. Qf6 {[%clk 0:01:47]}  Rxc3 {[%clk 0:00:58]} 32. Ree3 {[%clk 0:01:39]}  Rxe3 {[%clk 0:00:55]} 33. fxe3 {[%clk 0:01:38]}  Qxg4+ {[%clk 0:00:52]} 34. Kh2 {[%clk 0:01:38]}  Qe2+ {[%clk 0:00:44]} 35. Kh1 {[%clk 0:01:38]}  Rb8 {[%clk 0:00:35]} 36. Rg3+ {[%clk 0:01:36]}  Ng6 {[%clk 0:00:35]} 37. Rxg6+ {[%clk 0:01:32]}  fxg6 {[%clk 0:00:36]} 38. Qxg6+ {[%clk 0:01:33]}  Kf8 {[%clk 0:00:35]} 39. Qf6+ {[%clk 0:01:32]}  Ke8 {[%clk 0:00:35]} 40. Qxe6+ {[%clk 0:01:33]}  Kd8 {[%clk 0:00:35]} 41. Qd6+ {[%clk 0:01:32]}  Kc8 {[%clk 0:00:35]} 42. Qc6+ {[%clk 0:01:32]}  Kd8 {[%clk 0:00:35]} 43. Qd6+ {[%clk 0:01:32]}  Kc8 {[%clk 0:00:35]} 44. Qc6+ {[%clk 0:01:32]}  Kd8 {[%clk 0:00:35]} 45. Qd6+ {[%clk 0:01:33]} 1/2-1/2


[Site "https://www.chess.com"]

[Event "Titled Tuesday Blitz January 03 Early 2023"]
[White "Samaganova, Aleksandra"]
[Black "Andreev, Konstantin"]
[WhiteFideId "13800221"]
[BlackFideId "24239305"]
[WhiteElo "1856"]
[BlackElo "2195"]
[Result "1-0"]
[Round "11"]
[TimeControl "180+2"]
[Date "2023.01.03"]
[WhiteClock "0:03:01"]
[BlackClock "0:02:54"]

1. c4 {[%clk 0:03:00]}  Nf6 {[%clk 0:02:58]} 2. Nc3 {[%clk 0:03:00]}  e6 {[%clk 0:02:59]} 3. e4 {[%clk 0:03:00]}  d5 {[%clk 0:02:54]} 4. e5 {[%clk 0:03:00]}  d4 {[%clk 0:02:54]} 5. exf6 {[%clk 0:03:00]}  dxc3 {[%clk 0:02:55]} 6. bxc3 {[%clk 0:03:01]}  Qxf6 {[%clk 0:02:53]} 7. Nf3 {[%clk 0:03:01]}  Bd6 {[%clk 0:02:54]} 8. Bd3 {[%clk 0:03:01]}  O-O {[%clk 0:02:54]} 9. Be4 {[%clk 0:03:02]}  c5 {[%clk 0:02:54]} 10. d4 {[%clk 0:03:01]}  cxd4 {[%clk 0:02:54]} 11. Bg5 {[%clk 0:03:01]} 1-0


[Site "https://www.chess.com"]

[Event "Titled Tuesday Blitz January 03 Early 2023"]
[White "Martinez, Shawn"]
[Black "Hartikainen, Jarmo"]
[WhiteFideId "2039770"]
[BlackFideId "503134"]
[WhiteElo "1881"]
[BlackElo "2108"]
[Result "1-0"]
[Round "11"]
[TimeControl "180+2"]
[Date "2023.01.03"]
[WhiteClock "0:01:26"]
[BlackClock "0:00:13"]

1. e4 {[%clk 0:02:53]}  c5 {[%clk 0:02:59]} 2. Nc3 {[%clk 0:02:52]}  e6 {[%clk 0:02:58]} 3. g3 {[%clk 0:02:45]}  d5 {[%clk 0:02:58]} 4. Bg2 {[%clk 0:02:43]}  d4 {[%clk 0:02:50]} 5. Nce2 {[%clk 0:02:41]}  e5 {[%clk 0:02:49]} 6. d3 {[%clk 0:02:38]}  Nc6 {[%clk 0:02:42]} 7. f4 {[%clk 0:02:37]}  f6 {[%clk 0:02:42]} 8. Nf3 {[%clk 0:02:37]}  Bd6 {[%clk 0:02:35]} 9. O-O {[%clk 0:02:37]}  Be6 {[%clk 0:02:29]} 10. c3 {[%clk 0:02:35]}  Qd7 {[%clk 0:02:21]} 11. cxd4 {[%clk 0:02:34]}  cxd4 {[%clk 0:02:19]} 12. a3 {[%clk 0:02:25]}  Nge7 {[%clk 0:02:09]} 13. b4 {[%clk 0:02:23]}  O-O {[%clk 0:01:48]} 14. f5 {[%clk 0:02:11]}  Bf7 {[%clk 0:01:47]} 15. g4 {[%clk 0:02:12]}  h6 {[%clk 0:00:56]} 16. h4 {[%clk 0:02:08]}  Rfc8 {[%clk 0:00:55]} 17. Ng3 {[%clk 0:02:01]}  Kf8 {[%clk 0:00:45]} 18. g5 {[%clk 0:02:00]}  hxg5 {[%clk 0:00:43]} 19. hxg5 {[%clk 0:02:00]}  a5 {[%clk 0:00:37]} 20. b5 {[%clk 0:01:54]}  Na7 {[%clk 0:00:38]} 21. a4 {[%clk 0:01:53]}  Ke8 {[%clk 0:00:30]} 22. Nh4 {[%clk 0:01:50]}  Rc3 {[%clk 0:00:26]} 23. Nh5 {[%clk 0:01:48]}  Bxh5 {[%clk 0:00:24]} 24. Qxh5+ {[%clk 0:01:47]}  Kd8 {[%clk 0:00:25]} 25. Bb2 {[%clk 0:01:38]}  Rc2 {[%clk 0:00:23]} 26. Rf2 {[%clk 0:01:34]}  Rac8 {[%clk 0:00:18]} 27. gxf6 {[%clk 0:01:31]}  gxf6 {[%clk 0:00:18]} 28. Qh8+ {[%clk 0:01:31]}  Qe8 {[%clk 0:00:18]} 29. Qxf6 {[%clk 0:01:31]}  Rxf2 {[%clk 0:00:17]} 30. Qxd6+ {[%clk 0:01:30]}  Qd7 {[%clk 0:00:17]} 31. Qxd7+ {[%clk 0:01:26]}  Kxd7 {[%clk 0:00:17]} 32. Kxf2 {[%clk 0:01:27]}  Rc2+ {[%clk 0:00:18]} 33. Kg3 {[%clk 0:01:27]}  Rxb2 {[%clk 0:00:18]} 34. f6 {[%clk 0:01:26]}  Nec8 {[%clk 0:00:15]} 35. f7 {[%clk 0:01:26]}  Ke7 {[%clk 0:00:15]} 36. Rf1 {[%clk 0:01:26]}  Kf8 {[%clk 0:00:13]} 37. Ng6+ {[%clk 0:01:26]}  Kg7 {[%clk 0:00:12]} 38. f8=Q+ {[%clk 0:01:26]}  Kxg6 {[%clk 0:00:13]} 39. Qf7+ {[%clk 0:01:27]}  Kg5 {[%clk 0:00:13]} 40. Qf6+ {[%clk 0:01:27]}  Kh5 {[%clk 0:00:13]} 41. Bf3# {[%clk 0:01:26]} 1-0


[Site "https://www.chess.com"]

[Event "Titled Tuesday Blitz January 03 Early 2023"]
[White "Aung Thant Zin"]
[Black "Barbot, Pierre"]
[WhiteFideId "13000063"]
[BlackFideId "663727"]
[WhiteElo "2268"]
[BlackElo "2458"]
[Result "0-1"]
[Round "11"]
[TimeControl "180+2"]
[Date "2023.01.03"]
[WhiteClock "0:00:04"]
[BlackClock "0:00:16"]

1. e4 {[%clk 0:02:59]}  c5 {[%clk 0:02:59]} 2. Nf3 {[%clk 0:02:59]}  Nc6 {[%clk 0:02:59]} 3. Bb5 {[%clk 0:02:57]}  g6 {[%clk 0:02:59]} 4. O-O {[%clk 0:02:57]}  Bg7 {[%clk 0:02:59]} 5. c3 {[%clk 0:02:57]}  Nf6 {[%clk 0:02:58]} 6. Re1 {[%clk 0:02:57]}  O-O {[%clk 0:02:57]} 7. d4 {[%clk 0:02:52]}  d5 {[%clk 0:02:56]} 8. e5 {[%clk 0:02:51]}  Ne4 {[%clk 0:02:54]} 9. Nbd2 {[%clk 0:02:43]}  Bf5 {[%clk 0:02:25]} 10. h3 {[%clk 0:02:37]}  Qb6 {[%clk 0:02:21]} 11. Bxc6 {[%clk 0:02:36]}  bxc6 {[%clk 0:02:21]} 12. Nxe4 {[%clk 0:02:32]}  dxe4 {[%clk 0:02:19]} 13. Ng5 {[%clk 0:02:30]}  Rad8 {[%clk 0:02:07]} 14. g4 {[%clk 0:02:15]}  Bc8 {[%clk 0:01:56]} 15. Rxe4 {[%clk 0:02:09]}  cxd4 {[%clk 0:01:55]} 16. cxd4 {[%clk 0:02:06]}  c5 {[%clk 0:01:55]} 17. Be3 {[%clk 0:01:51]}  Qxb2 {[%clk 0:01:48]} 18. Qc1 {[%clk 0:01:43]}  Qb7 {[%clk 0:01:32]} 19. Rf4 {[%clk 0:01:34]}  cxd4 {[%clk 0:01:20]} 20. Bxd4 {[%clk 0:01:15]}  Qd5 {[%clk 0:00:49]} 21. Nf3 {[%clk 0:01:01]}  Bb7 {[%clk 0:00:39]} 22. Qc5 {[%clk 0:00:57]}  Qd7 {[%clk 0:00:23]} 23. Be3 {[%clk 0:00:49]}  Rc8 {[%clk 0:00:22]} 24. Qa5 {[%clk 0:00:33]}  Bh6 {[%clk 0:00:17]} 25. g5 {[%clk 0:00:33]}  Qxh3 {[%clk 0:00:15]} 26. gxh6 {[%clk 0:00:04]}  Bxf3 {[%clk 0:00:15]} 27. Rxf3 {[%clk 0:00:04]}  Qxf3 {[%clk 0:00:16]} 0-1


[Site "https://www.chess.com"]